bitfinex/quotes_SOLUSD_20251030
["timestamp","ask_amount","ask_price","bid_price","bid_amount"]
[1761783300501,0.69,193.65,193.56,3.20788482]
[1761783300694,0.69,193.64,193.59,3.20788482]
[1761783300909,0.69,193.68,193.63,3.20788482]
[1761783301082,0.2,193.69,193.65,3.20788482]
[1761783301287,0.69,193.68,193.64,3.20788482]
[1761783301488,0.69,193.68,193.63,14.95036803]
[1761783301695,3.20788482,193.67,193.63,14.95036803]
[1761783301914,3.20788482,193.67,193.61,23.79988482]
[1761783302096,0.69,193.66,193.62,3.20788482]
[1761783302284,3.40788482,193.69,193.64,3.20788482]
[1761783302490,0.2,193.69,193.66,3.20788482]
[1761783302787,0.2,193.69,193.67,3.20788482]
[1761783302986,0.2,193.69,193.65,0.67]
[1761783303191,0.2,193.69,193.68,3.20788482]
[1761783303821,0.2,193.69,193.67,3.20788482]
[1761783304820,0.2,193.69,193.66,3.20788482]
[1761783304989,0.89,193.69,193.62,24.31636039]
[1761783305314,3.20788482,193.67,193.62,23.79988482]
[1761783305711,0.69,193.66,193.62,27.00776964]
[1761783305913,0.2,193.69,193.64,3.20788482]
[1761783306121,0.89,193.69,193.64,3.20788482]
[1761783306292,4.09788482,193.69,193.63,23.79988482]
[1761783306501,3.20788482,193.67,193.63,20.592]
[1761783306695,0.69,193.68,193.63,20.592]
[1761783306904,0.69,193.68,193.64,3.20788482]
[1761783308021,0.69,193.68,193.65,3.20788482]
[1761783308419,0.69,193.68,193.64,3.20788482]
[1761783310136,0.69,193.68,193.65,3.20788482]
[1761783311133,0.2,193.69,193.66,3.20788482]
[1761783311314,0.2,193.69,193.68,3.20788482]
[1761783311631,0.2,193.69,193.67,3.20788482]
[1761783312209,0.2,193.69,193.68,3.87788482]
[1761783312412,0.2,193.69,193.68,23.79988482]
[1761783312732,0.2,193.69,193.68,26.42515572]
[1761783313107,0.2,193.69,193.68,39.5640298]
[1761783313310,0.2,193.77,193.69,9.93098926]
[1761783313509,0.2,193.77,193.76,3.20788482]
[1761783313711,0.2,193.77,193.72,20.592]
[1761783313712,0.7,193.76,193.72,20.592]
[1761783313904,0.7,193.76,193.74,3.20788482]
[1761783314112,0.2,193.77,193.75,3.20788482]
[1761783314421,0.2,193.77,193.76,3.20788482]
[1761783314613,0.2,193.77,193.76,23.79988482]
[1761783315006,0.2,193.77,193.76,3.20788482]
[1761783315219,0.2,193.77,193.74,20.592]
[1761783315432,0.2,193.77,193.76,7.62713349]
[1761783315731,0.2,193.77,193.75,20.592]
[1761783316034,0.2,193.77,193.76,7.62713349]
[1761783316231,0.7,193.76,193.75,20.592]
[1761783316417,0.2,193.77,193.75,28.21913349]
[1761783316733,0.2,193.77,193.76,28.89913349]
[1761783317230,0.2,193.77,193.76,38.83012275]
[1761783317434,0.2,193.77,193.76,39.34622514]
[1761783317935,0.2,193.77,193.76,18.75422514]
[1761783318140,0.2,193.77,193.76,26.38135863]
[1761783318511,0.2,193.77,193.76,16.28811559]
[1761783318809,0.2,193.77,193.76,23.91524908]
[1761783319225,0.2,193.77,193.76,31.54238257]
[1761783320632,0.1,193.87,193.83,20.592]
[1761783320840,0.8,193.87,193.86,7.62713349]
[1761783321040,0.8,193.87,193.85,7.62713349]
[1761783322313,0.8,193.87,193.83,20.592]
[1761783322314,0.8,193.87,193.83,28.21913349]
[1761783322519,8.42713349,193.87,193.81,23.13541749]
[1761783322737,8.42713349,193.87,193.81,7.62713349]
[1761783322942,0.7,193.86,193.81,7.62713349]
[1761783323150,0.7,193.86,193.78,20.592]
[1761783323444,0.7,193.86,193.78,30.38082769]
[1761783323661,0.1,193.87,193.85,7.62713349]
[1761783324256,0.8,193.87,193.85,7.62713349]
[1761783324628,0.1,193.87,193.86,7.62713349]
[1761783324833,0.8,193.87,193.84,20.592]
[1761783325158,0.8,193.87,193.84,28.21913349]
[1761783325366,7.62713349,193.86,193.8,7.62713349]
[1761783325554,0.8,193.87,193.83,20.592]
[1761783325724,0.8,193.87,193.8,7.62713349]
[1761783325725,8.32713349,193.86,193.8,7.62713349]
[1761783326157,0.7,193.85,193.83,7.62713349]
[1761783326331,0.7,193.85,193.81,7.62713349]
[1761783326725,7.62713349,193.84,193.78,28.21913349]
[1761783326941,8.32713349,193.85,193.79,7.62713349]
[1761783327119,0.7,193.84,193.8,7.62713349]
[1761783327314,0.7,193.84,193.78,20.592]
[1761783327522,0.7,193.84,193.8,7.62713349]
[1761783327745,0.7,193.84,193.78,20.592]
[1761783327929,7.62713349,193.83,193.78,28.21913349]
[1761783328133,0.1,193.87,193.75,15.8022295]
[1761783328134,7.62713349,193.81,193.75,7.62713349]
[1761783328617,0.7,193.8,193.75,7.62713349]
[1761783328818,7.62713349,193.79,193.74,7.62713349]
[1761783329124,8.32713349,193.8,193.76,20.592]
[1761783329351,0.7,193.79,193.76,20.592]
[1761783329724,0.7,193.79,193.76,7.62713349]
[1761783330040,0.7,193.79,193.75,28.21913349]
[1761783330426,0.7,193.79,193.76,7.62713349]
[1761783330736,20.692,193.87,193.77,7.62713349]
[1761783331046,0.1,193.87,193.85,7.62713349]
[1761783331225,0.1,193.87,193.86,7.62713349]
[1761783331630,0.8,193.87,193.86,7.62713349]
[1761783331929,0.8,193.87,193.85,7.62713349]
[1761783332325,0.1,193.87,193.85,7.62713349]
[1761783332529,0.1,193.87,193.86,7.62713349]
[1761783335125,0.1,193.87,193.85,20.592]
[1761783335438,0.1,193.87,193.86,28.21913349]
[1761783335837,0.8,193.87,193.86,20.592]
[1761783336171,0.1,193.87,193.86,20.592]
[1761783336462,0.1,193.87,193.86,28.21913349]
[1761783336665,0.1,193.87,193.86,28.92913349]
[1761783336853,0.8,193.87,193.86,20.592]
[1761783337257,0.8,193.87,193.85,7.62713349]
[1761783337442,0.1,193.87,193.85,7.62713349]
[1761783337637,0.7,193.86,193.82,25.8935306]
[1761783337845,8.32713349,193.86,193.79,9.78882769]
[1761783338048,8.32713349,193.86,193.8,7.62713349]
[1761783338271,0.7,193.85,193.8,28.21913349]
[1761783338680,8.32713349,193.85,193.8,20.592]
[1761783338837,8.32713349,193.85,193.8,28.21913349]
[1761783339039,0.7,193.84,193.8,20.592]
[1761783339237,0.7,193.84,193.8,28.21913349]
[1761783339453,0.7,193.84,193.81,7.62713349]
[1761783340048,0.7,193.84,193.8,28.21913349]
[1761783341550,0.7,193.84,193.8,20.592]
[1761783343161,0.7,193.84,193.8,28.21913349]
[1761783343671,0.7,193.84,193.8,20.592]
[1761783343852,8.32713349,193.84,193.8,20.592]
[1761783344349,0.7,193.83,193.8,20.592]
[1761783344767,0.1,193.87,193.8,28.21913349]
[1761783344972,8.32713349,193.84,193.78,8.33713349]
[1761783345273,7.62713349,193.8,193.74,7.62713349]
[1761783345583,0.7,193.83,193.74,7.62713349]
[1761783345777,0.7,193.82,193.77,7.62713349]
[1761783346269,8.32713349,193.82,193.76,7.62713349]
[1761783346766,0.7,193.82,193.77,7.62713349]
[1761783346985,0.7,193.81,193.77,7.62713349]
[1761783347161,7.62713349,193.83,193.78,7.62713349]
[1761783347356,20.592,193.85,193.76,5.87101492]
[1761783347563,0.7,193.82,193.77,7.62713349]
[1761783348052,7.62713349,193.84,193.79,7.62713349]
[1761783348371,7.62713349,193.84,193.78,8.33713349]
[1761783348372,8.32713349,193.84,193.78,8.33713349]
[1761783348546,0.1,193.87,193.76,25.75301492]
[1761783348547,8.32713349,193.83,193.77,7.62713349]
[1761783349047,0.1,193.87,193.78,17.55812275]
[1761783349048,0.7,193.82,193.78,17.55812275]
[1761783349243,0.1,193.87,193.79,7.62713349]
[1761783349244,7.62713349,193.85,193.79,7.62713349]
[1761783349471,0.7,193.86,193.82,7.62713349]
[1761783349672,0.8,193.87,193.82,7.62713349]
[1761783349976,0.7,193.86,193.82,7.62713349]
[1761783351676,0.7,193.86,193.82,8.33713349]
[1761783352669,0.7,193.86,193.82,7.62713349]
[1761783353064,0.7,193.86,193.83,7.62713349]
[1761783353259,0.7,193.86,193.83,5.11782272]
[1761783353760,0.1,193.87,193.82,0.7]
[1761783353962,0.1,193.87,193.83,5.11782272]
[1761783354374,0.77,193.87,193.83,5.81782272]
[1761783354572,0.77,193.87,193.82,5.11782272]
[1761783355372,0.77,193.87,193.83,5.11782272]
[1761783355569,5.11782272,193.86,193.8,5.11782272]
[1761783355773,5.11782272,193.85,193.81,20.592]
[1761783355976,5.11782272,193.85,193.79,5.11782272]
[1761783356274,0.67,193.85,193.79,5.11782272]
[1761783356472,0.67,193.85,193.8,5.11782272]
[1761783356859,0.67,193.85,193.81,5.11782272]
[1761783358083,0.67,193.85,193.81,5.81782272]
[1761783358463,0.1,193.87,193.8,5.15989507]
[1761783358663,0.1,193.87,193.83,5.11782272]
[1761783358875,0.1,193.87,193.82,10.97723323]
[1761783359086,0.77,193.87,193.83,5.11782272]
[1761783359660,0.1,193.87,193.84,5.11782272]
[1761783359867,0.1,193.87,193.84,5.81782272]
[1761783360185,0.1,193.87,193.84,5.11782272]
[1761783360392,0.1,193.87,193.84,5.81782272]
[1761783360586,0.77,193.87,193.84,5.11782272]
[1761783360785,5.11782272,193.86,193.8,9.45347856]
[1761783361283,0.77,193.87,193.8,9.49558557]
[1761783361284,0.67,193.85,193.8,9.49558557]
[1761783361596,2.04772279,193.84,193.8,4.33565584]
[1761783361770,2.71772279,193.85,193.79,32.13560182]
[1761783361972,2.71772279,193.85,193.79,32.83560182]
[1761783362190,0.67,193.85,193.8,2.04772279]
[1761783362578,0.67,193.85,193.8,7.08337863]
[1761783362990,0.67,193.85,193.8,12.24317555]
[1761783363887,2.81772279,193.87,193.82,2.04772279]
[1761783364279,0.67,193.86,193.81,6.38337863]
[1761783364498,0.67,193.86,193.8,4.33565584]
[1761783364499,2.04772279,193.85,193.8,4.33565584]
[1761783364806,2.04772279,193.85,193.79,27.67537863]
[1761783365003,2.71772279,193.85,193.79,27.67537863]
[1761783365378,2.71772279,193.85,193.79,23.33972279]
[1761783365681,0.67,193.85,193.8,2.04772279]
[1761783366283,2.71772279,193.85,193.8,0.7]
[1761783366478,0.67,193.85,193.8,2.74772279]
[1761783366678,0.67,193.85,193.81,2.04772279]
[1761783367286,0.67,193.85,193.8,2.74772279]
[1761783367518,0.1,193.87,193.81,2.04772279]
[1761783367812,0.1,193.87,193.82,4.33565584]
[1761783368120,0.1,193.87,193.8,4.33565584]
[1761783368121,2.04772279,193.83,193.8,4.33565584]
[1761783368326,0.67,193.86,193.79,24.92765584]
[1761783368501,0.67,193.85,193.79,24.92765584]
[1761783368690,2.04772279,193.81,193.78,4.33565584]
[1761783368886,2.04772279,193.81,193.78,20.592]
[1761783369190,0.67,193.8,193.77,4.33565584]
[1761783369792,0.67,193.8,193.76,4.33565584]
[1761783369793,2.04772279,193.79,193.76,4.33565584]
[1761783369997,2.04772279,193.79,193.75,4.33565584]
[1761783370184,2.71772279,193.79,193.75,5.03565584]
[1761783370393,2.04772279,193.8,193.75,7.08337863]
[1761783370696,2.04772279,193.8,193.76,4.33565584]
[1761783370996,0.67,193.79,193.76,4.33565584]
[1761783371204,2.71772279,193.8,193.75,7.08337863]
[1761783371414,0.67,193.83,193.76,5.82216145]
[1761783371730,5.12216145,193.8,193.76,4.33565584]
[1761783371887,5.12216145,193.78,193.76,4.33565584]
[1761783372087,5.12216145,193.79,193.74,4.33565584]
[1761783372313,5.12216145,193.8,193.75,5.12216145]
[1761783372528,5.12216145,193.81,193.75,5.82216145]
[1761783372808,5.12216145,193.76,193.73,4.33565584]
[1761783373015,5.12216145,193.74,193.72,4.33565584]
[1761783373318,5.84216145,193.73,193.69,9.76366796]
[1761783373612,5.12216145,193.7,193.69,9.76366796]
[1761783373996,5.84216145,193.7,193.69,9.76366796]
[1761783375532,0.72,193.72,193.69,9.76366796]
[1761783375733,5.12216145,193.7,193.69,9.76366796]
[1761783376111,5.84216145,193.7,193.69,9.76366796]
[1761783377732,11.00478406,193.7,193.69,9.76366796]
[1761783377932,38.82232973,193.7,193.57,0.2]
[1761783378152,20.592,193.65,193.57,0.2]
[1761783378452,5.12216145,193.6,193.57,0.2]
[1761783378609,5.12216145,193.68,193.59,5.12216145]
[1761783378940,5.12216145,193.66,193.6,5.12216145]
[1761783379116,5.84216145,193.65,193.59,20.592]
[1761783379307,5.84216145,193.65,193.57,25.91416145]
[1761783379308,5.12216145,193.63,193.57,25.91416145]
[1761783379506,5.84216145,193.64,193.58,5.84216145]
[1761783379700,12.90733681,193.69,193.58,5.84216145]
[1761783379701,5.12216145,193.63,193.58,5.84216145]
[1761783379910,5.12216145,193.64,193.58,5.84216145]
[1761783380105,5.12216145,193.65,193.59,5.12216145]
[1761783380418,5.12216145,193.68,193.62,5.12216145]
[1761783380615,5.12216145,193.7,193.64,5.12216145]
[1761783380842,0.72,193.71,193.61,20.592]
[1761783380843,0.72,193.71,193.66,5.12216145]
[1761783381008,0.72,193.71,193.62,0.86216157]
[1761783381209,5.84216145,193.71,193.65,5.12216145]
[1761783381743,0.72,193.7,193.64,5.12216145]
[1761783381944,5.12216145,193.68,193.62,5.84216145]
[1761783382648,5.82216145,193.68,193.62,0.72]
[1761783382945,5.82216145,193.68,193.62,5.84216145]
[1761783383439,5.12216145,193.69,193.63,5.83216145]
[1761783383613,5.82216145,193.69,193.63,5.83216145]
[1761783383813,5.12216145,193.7,193.64,5.12216145]
[1761783384059,5.12216145,193.71,193.65,5.12216145]
[1761783384241,5.12216145,193.7,193.64,5.83216145]
[1761783384415,5.12216145,193.69,193.64,5.83216145]
[1761783384918,5.82216145,193.69,193.64,5.83216145]
[1761783385627,0.7,193.69,193.64,0.71]
[1761783385936,5.82216145,193.69,193.64,0.71]
[1761783386626,5.12216145,193.7,193.64,5.83216145]
[1761783386828,5.82216145,193.71,193.65,5.12216145]
[1761783387028,107.92216145,193.74,193.65,0.71]
[1761783387338,107.92216145,193.74,193.68,5.12216145]
[1761783388320,5.12216145,193.73,193.67,5.83216145]
[1761783388517,5.12216145,193.73,193.65,13.42697789]
[1761783388518,5.12216145,193.68,193.65,13.42697789]
[1761783388729,5.12216145,193.68,193.62,14.91098914]
[1761783389040,5.12216145,193.68,193.62,21.35569253]
[1761783389242,5.12216145,193.68,193.63,5.12216145]
[1761783389458,5.82216145,193.69,193.63,5.12216145]
[1761783389670,0.7,193.69,193.64,5.83216145]
[1761783390168,0.7,193.69,193.64,5.12216145]
[1761783390335,0.7,193.69,193.64,5.83216145]
[1761783390536,5.12216145,193.71,193.65,5.83216145]
[1761783391029,5.82216145,193.71,193.65,5.83216145]
[1761783391464,5.82216145,193.7,193.65,5.83216145]
[1761783391844,0.7,193.69,193.64,5.12216145]
[1761783392246,0.7,193.69,193.64,5.83216145]
[1761783393061,5.82216145,193.69,193.65,9.78882769]
[1761783393284,0.7,193.69,193.65,9.78882769]
[1761783393577,10.2859295,193.66,193.63,15.52353108]
[1761783393776,0.7,193.68,193.58,9.78882769]
[1761783393937,20.592,193.71,193.6,5.12216145]
[1761783393938,5.12216145,193.65,193.6,5.12216145]
[1761783394140,5.12216145,193.64,193.58,15.62098914]
[1761783394544,5.12216145,193.62,193.58,9.78882769]
[1761783394848,0.7,193.63,193.58,9.78882769]
[1761783395059,5.12216145,193.62,193.58,10.49882769]
[1761783395570,5.82216145,193.63,193.58,10.49882769]
[1761783395791,20.592,193.69,193.62,5.12216145]
[1761783395948,5.12216145,193.68,193.62,5.12216145]
[1761783396143,0.7,193.73,193.65,9.78882769]
[1761783396368,18.02267071,193.8,193.69,9.78882769]
[1761783396576,5.12216145,193.74,193.69,9.78882769]
[1761783396943,5.82216145,193.74,193.69,10.49882769]
[1761783397166,0.7,193.73,193.66,9.78882769]
[1761783397370,0.7,193.73,193.68,9.78882769]
[1761783397668,5.12216145,193.72,193.67,0.71]
[1761783397843,5.12216145,193.71,193.67,9.78882769]
[1761783398046,5.12216145,193.69,193.65,5.16129578]
[1761783398352,5.12216145,193.68,193.63,9.78882769]
[1761783398551,5.16185068,193.73,193.63,9.78882769]
[1761783398766,5.12216145,193.68,193.62,31.58545723]
[1761783398947,0.7,193.72,193.63,9.78882769]
[1761783398948,5.12216145,193.67,193.63,9.78882769]
[1761783399561,5.12216145,193.68,193.64,0.71]
[1761783399763,0.7,193.69,193.64,0.71]
[1761783400071,5.12216145,193.69,193.64,5.83216145]
[1761783400261,5.12216145,193.69,193.65,9.78882769]
[1761783400457,5.12216145,193.69,193.62,21.302]
[1761783400650,5.12216145,193.69,193.63,15.62098914]
[1761783401055,5.12216145,193.69,193.65,9.78882769]
[1761783401456,5.12216145,193.69,193.65,10.49882769]
[1761783402044,5.12216145,193.69,193.65,9.78882769]
[1761783402242,5.12216145,193.69,193.64,9.78882769]
[1761783402243,5.12216145,193.68,193.64,9.78882769]
[1761783402668,5.12216145,193.68,193.64,0.71]
[1761783403041,5.82216145,193.68,193.64,0.71]
[1761783403245,5.12216145,193.72,193.67,9.78882769]
[1761783403460,5.12216145,193.74,193.68,5.12216145]
[1761783403844,5.12216145,193.74,193.68,5.83216145]
[1761783404345,5.82216145,193.74,193.68,5.83216145]
[1761783404879,5.12216145,193.75,193.69,15.62098914]
[1761783405285,5.12216145,193.75,193.7,0.71]
[1761783405778,5.82216145,193.75,193.7,0.71]
[1761783407057,5.12216145,193.72,193.69,9.78882769]
[1761783407958,5.12216145,193.71,193.67,5.160772]
[1761783408174,5.82216145,193.71,193.66,21.302]
[1761783408565,0.7,193.71,193.66,26.42416145]
[1761783409281,5.82216145,193.71,193.66,21.302]
[1761783409464,5.82216145,193.71,193.64,25.31155555]
[1761783409465,5.12216145,193.69,193.64,9.78882769]
[1761783409966,0.7,193.68,193.64,9.78882769]
[1761783410279,0.7,193.68,193.63,0.71]
[1761783410280,5.82216145,193.68,193.63,0.71]
[1761783410865,5.82216145,193.68,193.63,5.83216145]
[1761783410866,0.7,193.68,193.63,5.83216145]
[1761783411484,20.592,193.76,193.68,9.78882769]
[1761783411485,0.7,193.76,193.68,9.78882769]
[1761783411681,5.82216145,193.75,193.68,10.49882769]
[1761783411889,5.12216145,193.74,193.68,15.62098914]
[1761783412873,102.1,193.78,193.65,20.73416157]
[1761783412874,5.81216145,193.73,193.67,0.14216157]
[1761783413067,5.81216145,193.73,193.68,9.78882769]
[1761783413476,8.3259669,193.73,193.68,10.47882769]
[1761783414881,7.6359669,193.77,193.72,9.78882769]
[1761783415064,8.3259669,193.78,193.73,0.69]
[1761783415674,7.6359669,193.74,193.68,10.47882769]
[1761783415869,0.69,193.77,193.67,7.6359669]
[1761783415870,7.6359669,193.73,193.67,7.6359669]
[1761783416196,7.6359669,193.73,193.68,0.69]
[1761783416669,8.3259669,193.73,193.68,0.69]
[1761783417090,7.6359669,193.73,193.68,0.69]
[1761783417479,8.3259669,193.73,193.68,0.69]
[1761783417998,8.3259669,193.72,193.67,9.78882769]
[1761783418175,8.3259669,193.72,193.68,0.69]
[1761783418377,7.6359669,193.72,193.68,0.69]
[1761783418694,7.6359669,193.73,193.68,0.69]
[1761783419075,7.6359669,193.72,193.68,0.69]
[1761783419275,8.3259669,193.72,193.67,17.42479459]
[1761783419478,8.3259669,193.72,193.67,18.11479459]
[1761783420492,7.6359669,193.69,193.66,20.592]
[1761783420897,7.6359669,193.7,193.66,20.592]
[1761783421194,7.6359669,193.74,193.69,9.78882769]
[1761783421375,7.6359669,193.71,193.67,17.42479459]
[1761783421571,7.6359669,193.72,193.68,0.69]
[1761783421782,0.69,193.73,193.68,0.69]
[1761783422072,0.69,193.75,193.7,7.6359669]
[1761783422272,8.3259669,193.8,193.74,7.6359669]
[1761783423282,8.3259669,193.8,193.75,7.6359669]
[1761783423596,7.6359669,193.82,193.77,7.6359669]
[1761783424097,7.6359669,193.83,193.78,10.47882769]
[1761783424395,0.69,193.85,193.78,18.11479459]
[1761783424396,7.6359669,193.84,193.78,18.11479459]
[1761783424599,8.3259669,193.84,193.75,21.282]
[1761783424790,7.6359669,193.81,193.76,28.2279669]
[1761783425184,7.6359669,193.81,193.76,28.9179669]
[1761783425799,8.3259669,193.81,193.76,8.3259669]
[1761783425995,8.3259669,193.81,193.76,7.6359669]
[1761783425996,0.69,193.81,193.76,7.6359669]
[1761783426316,0.1,193.87,193.81,9.78882769]
[1761783426620,7.6359669,193.86,193.81,7.6359669]
[1761783426910,7.6359669,193.83,193.78,9.78882769]
[1761783427299,0.79,193.87,193.79,8.3259669]
[1761783427486,0.1,193.87,193.83,7.6359669]
[1761783427689,0.1,193.87,193.82,7.6359669]
[1761783428004,7.7359669,193.87,193.81,8.3259669]
[1761783428492,0.1,193.87,193.82,8.3259669]
[1761783428890,0.1,193.87,193.83,0.69]
[1761783430401,0.1,193.87,193.86,7.6359669]
[1761783430794,0.1,193.87,193.86,8.3259669]
[1761783431004,0.1,193.87,193.86,18.11479459]
[1761783431314,0.1,193.87,193.86,10.47882769]
[1761783432208,0.1,193.87,193.85,7.6359669]
[1761783432413,7.6359669,193.86,193.85,7.6359669]
[1761783432596,7.6359669,193.86,193.8,9.78882769]
[1761783432799,7.6359669,193.82,193.79,7.6359669]
[1761783433008,7.6359669,193.82,193.78,9.78882769]
[1761783433525,0.65,193.84,193.81,20.592]
[1761783433823,8.2859669,193.84,193.81,20.592]
[1761783434110,0.65,193.84,193.79,0.68]
[1761783434291,8.2859669,193.84,193.81,20.592]
[1761783434692,7.6359669,193.83,193.81,20.592]
[1761783434915,7.6359669,193.83,193.8,20.592]
[1761783435114,7.6359669,193.83,193.8,21.272]
[1761783435313,7.6359669,193.84,193.81,20.592]
[1761783436217,8.2859669,193.84,193.8,0.68]
[1761783436722,7.6359669,193.81,193.77,20.592]
[1761783436894,7.6359669,193.78,193.77,20.592]
[1761783437297,8.2859669,193.78,193.73,18.07479459]
[1761783437492,7.6359669,193.76,193.71,0.68]
[1761783437827,8.2859669,193.77,193.74,20.592]
[1761783438030,7.6359669,193.75,193.71,10.46882769]
[1761783438200,7.6359669,193.76,193.71,10.46882769]
[1761783438402,7.6359669,193.76,193.71,0.68]
[1761783438802,7.6359669,193.76,193.71,10.46882769]
[1761783439004,8.2859669,193.76,193.71,10.46882769]
[1761783439794,20.592,193.83,193.75,7.6359669]
[1761783439795,0.65,193.83,193.75,7.6359669]
[1761783439997,28.2279669,193.82,193.76,8.3159669]
[1761783440527,7.6359669,193.79,193.74,7.6359669]
[1761783440707,7.6359669,193.77,193.72,18.10479459]
[1761783441025,7.6359669,193.78,193.73,0.68]
[1761783441207,0.65,193.79,193.73,0.68]
[1761783441208,8.2859669,193.79,193.73,21.272]
[1761783441414,7.6359669,193.77,193.73,20.592]
[1761783441614,5.15999724,193.8,193.73,20.592]
[1761783441807,7.6359669,193.78,193.73,20.592]
[1761783442197,0.65,193.77,193.73,20.592]
[1761783442524,7.6359669,193.74,193.7,9.78882769]
[1761783442744,7.6359669,193.74,193.68,8.3559669]
[1761783442745,7.6359669,193.73,193.68,15.9919338]
[1761783442915,7.6359669,193.73,193.69,9.78882769]
[1761783443229,8.3159669,193.73,193.68,9.78882769]
[1761783443526,7.6359669,193.73,193.69,0.72]
[1761783443740,7.6359669,193.73,193.68,10.50882769]
[1761783444107,7.6359669,193.73,193.69,0.72]
[1761783444431,7.6359669,193.74,193.69,0.72]
[1761783444809,8.3159669,193.74,193.68,17.42479459]
[1761783445332,0.68,193.79,193.72,7.6359669]
[1761783445545,0.68,193.79,193.73,7.6359669]
[1761783445546,8.3159669,193.79,193.73,7.6359669]
[1761783445909,0.68,193.78,193.73,7.6359669]
[1761783446112,8.3159669,193.78,193.72,7.6359669]
[1761783446307,8.3159669,193.78,193.72,17.42479459]
[1761783446519,8.3159669,193.77,193.72,9.78882769]
[1761783446810,7.6359669,193.79,193.73,8.3559669]
[1761783447012,8.3159669,193.79,193.73,7.6359669]
[1761783447513,8.3159669,193.79,193.73,8.3559669]
[1761783447722,0.68,193.78,193.72,18.14479459]
[1761783447905,8.3159669,193.78,193.72,18.14479459]
[1761783448422,7.6359669,193.79,193.73,8.3559669]
[1761783449725,7.6359669,193.78,193.73,8.3559669]
[1761783450719,8.3159669,193.78,193.73,8.3559669]
[1761783450927,0.68,193.82,193.75,7.6359669]
[1761783451128,7.6359669,193.8,193.75,7.6359669]
[1761783451328,7.6359669,193.8,193.75,8.3559669]
[1761783451636,7.6359669,193.8,193.76,0.72]
[1761783453050,0.68,193.82,193.76,0.72]
[1761783453224,7.6359669,193.8,193.76,0.72]
[1761783453830,7.6359669,193.79,193.76,0.72]
[1761783454151,7.6359669,193.82,193.76,8.3559669]
[1761783454331,8.3159669,193.82,193.76,8.3559669]
[1761783454528,5.15909528,193.84,193.74,20.592]
[1761783454529,0.68,193.81,193.74,20.592]
[1761783454732,7.6359669,193.77,193.74,20.592]
[1761783455152,8.3159669,193.77,193.73,20.592]
[1761783455454,7.6359669,193.77,193.73,20.592]
[1761783455665,7.6359669,193.77,193.73,21.312]
[1761783457735,8.3159669,193.77,193.73,20.592]
[1761783457949,7.6359669,193.77,193.73,21.312]
[1761783458138,0.68,193.79,193.73,21.312]
[1761783458340,7.6359669,193.78,193.73,28.9479669]
[1761783458732,7.6359669,193.79,193.74,0.72]
[1761783458933,7.6359669,193.79,193.74,10.50882769]
[1761783459356,7.6359669,193.79,193.75,0.72]
[1761783459942,7.6359669,193.78,193.75,0.72]
[1761783460345,7.6359669,193.78,193.73,18.14479459]
[1761783460537,7.6359669,193.78,193.74,0.72]
[1761783460977,7.6359669,193.8,193.74,8.3559669]
[1761783461138,7.6359669,193.8,193.75,17.42479459]
[1761783461336,7.6359669,193.8,193.76,0.72]
[1761783462132,8.3159669,193.8,193.76,0.72]
[1761783462336,7.6359669,193.79,193.74,10.50882769]
[1761783462840,7.6359669,193.79,193.75,0.72]
[1761783465165,7.6359669,193.77,193.73,9.78882769]
[1761783465345,7.6359669,193.77,193.73,10.50882769]
[1761783465541,7.6359669,193.77,193.73,9.78882769]
[1761783465740,7.6359669,193.77,193.74,0.72]
[1761783466044,0.68,193.78,193.74,0.72]
[1761783466254,7.6359669,193.77,193.74,0.72]
[1761783467744,8.3159669,193.78,193.74,0.72]
[1761783467944,7.6359669,193.8,193.74,8.3559669]
[1761783468291,7.6359669,193.82,193.76,7.6359669]
[1761783468445,0.68,193.85,193.79,7.6359669]
[1761783468782,7.6359669,193.85,193.79,7.6359669]
[1761783468938,102.1,193.86,193.79,0.72]
[1761783469143,7.6359669,193.84,193.79,0.72]
[1761783469948,7.6359669,193.83,193.79,0.72]
[1761783470143,8.3159669,193.83,193.79,0.72]